{"text_format":"2","workbook":"xlsx","n_sheets":1,"sheets":["Tabelle1"],"not_rendered":{"charts":0,"images":1,"macros":0,"external_links":0,"defined_names":1,"comments":0,"pivot_tables":0},"unopened":[],"bounds":{"document_bytes":16777216,"sheet_cells":100000,"run_cost":"one","rows_first":2000,"rows_last":500,"rows_between":2000,"halvings":0,"cell_chars":16384,"cell_head_chars":4096},"cells_cut":0,"cells_raw":0,"read":"whole","date_system":"1900"}

{"sheet":"Tabelle1","index":0,"n_rows":41,"n_cols":10,"rows_kept":41,"cut":false,"hidden":false,"merged":[[31,0,31,9],[35,0,35,9],[40,0,40,9],[1,1,1,4],[6,8,7,9],[8,8,8,9],[27,0,28,9],[18,8,18,9],[18,2,18,3],[19,0,19,9],[2,1,2,4],[1,6,1,9],[2,6,2,9],[6,3,7,3],[6,4,7,4],[6,5,7,5],[0,0,0,9],[3,4,3,5],[6,1,7,1],[6,2,7,2],[6,7,7,7],[6,0,7,0],[6,6,7,6],[5,4,5,6]]}
["Ersatz tatsächlicher Fahrtkosten1 für Funktionär:innen2                                        "]
["BETRIFFT:",{"$nulls":4},"ORT:"]
[null,"(Zweck der Fahrt)",{"$nulls":4},"(Adresse des Fahrtziels, im Ausland zusätzlich auch das Land)"]
[null,"ZEITRAUM      am / vom:",null,"bis:"]
[{"$nulls":9},"ANZAHL DER PERSONEN"]
[{"$nulls":9},"Bitte in Block- oder Druckschrift ausfüllen!"]
["Lfd. Nr.","Familien- und Vorname","Adresse Abfahrtsort","Bestätigung eignes KFZ3","Gefahrene   PKW-Kilometer","Kilometergeld4  (in Euro)","Kosten Massen-beförderungs-mittel (in Euro)","Summe     (in Euro)","Unterschrift bei Barerhalt bzw.                                                  IBAN und BIC bei Überweisung5"]
[]
[null,null,null,"Ü B E R T R A G:",null,null,null,{"$f":"IF(SUM(F9:G9)>0,SUM(F9:G9),\"\")","v":""}]
[1,{"$nulls":4},{"$f":"IF(G10>0,0,_xlfn.IFS(E10<=150,0.5*E10,AND(E10>150,E10<=250),E10*0.45,AND(E10>250,E10<=350),E10*0.4,AND(E10>350,E10<=450),E10*0.35,AND(E10>450,E10<=600),E10*0.3,AND(E10>600,E10<=1000),E10*0.25,E10>1000,E10*0.2))","v":0},null,"","IBAN BIC"]
[2,{"$nulls":4},{"$f":"_xlfn.IFS(E11<=150,0.5*E11,AND(E11>150,E11<=250),E11*0.45,AND(E11>250,E11<=350),E11*0.4,AND(E11>350,E11<=450),E11*0.35,AND(E11>450,E11<=600),E11*0.3,AND(E11>600,E11<=1000),E11*0.25,E11>1000,E11*0.2)","v":0},null,"","IBAN BIC"]
[3,{"$nulls":4},{"$f":"_xlfn.IFS(E12<=150,0.5*E12,AND(E12>150,E12<=250),E12*0.45,AND(E12>250,E12<=350),E12*0.4,AND(E12>350,E12<=450),E12*0.35,AND(E12>450,E12<=600),E12*0.3,AND(E12>600,E12<=1000),E12*0.25,E12>1000,E12*0.2)","v":0},null,"","IBAN BIC"]
[4,{"$nulls":4},{"$f":"_xlfn.IFS(E13<=150,0.5*E13,AND(E13>150,E13<=250),E13*0.45,AND(E13>250,E13<=350),E13*0.4,AND(E13>350,E13<=450),E13*0.35,AND(E13>450,E13<=600),E13*0.3,AND(E13>600,E13<=1000),E13*0.25,E13>1000,E13*0.2)","v":0},null,"","IBAN BIC"]
[5,{"$nulls":4},{"$f":"_xlfn.IFS(E14<=150,0.5*E14,AND(E14>150,E14<=250),E14*0.45,AND(E14>250,E14<=350),E14*0.4,AND(E14>350,E14<=450),E14*0.35,AND(E14>450,E14<=600),E14*0.3,AND(E14>600,E14<=1000),E14*0.25,E14>1000,E14*0.2)","v":0},null,"","IBAN BIC"]
[6,{"$nulls":4},{"$f":"_xlfn.IFS(E15<=150,0.5*E15,AND(E15>150,E15<=250),E15*0.45,AND(E15>250,E15<=350),E15*0.4,AND(E15>350,E15<=450),E15*0.35,AND(E15>450,E15<=600),E15*0.3,AND(E15>600,E15<=1000),E15*0.25,E15>1000,E15*0.2)","v":0},null,"","IBAN BIC"]
[7,{"$nulls":4},{"$f":"_xlfn.IFS(E16<=150,0.5*E16,AND(E16>150,E16<=250),E16*0.45,AND(E16>250,E16<=350),E16*0.4,AND(E16>350,E16<=450),E16*0.35,AND(E16>450,E16<=600),E16*0.3,AND(E16>600,E16<=1000),E16*0.25,E16>1000,E16*0.2)","v":0},null,"","IBAN BIC"]
[8,{"$nulls":4},{"$f":"_xlfn.IFS(E17<=150,0.5*E17,AND(E17>150,E17<=250),E17*0.45,AND(E17>250,E17<=350),E17*0.4,AND(E17>350,E17<=450),E17*0.35,AND(E17>450,E17<=600),E17*0.3,AND(E17>600,E17<=1000),E17*0.25,E17>1000,E17*0.2)","v":0},null,"","IBAN BIC"]
[9,{"$nulls":4},{"$f":"_xlfn.IFS(E18<=150,0.5*E18,AND(E18>150,E18<=250),E18*0.45,AND(E18>250,E18<=350),E18*0.4,AND(E18>350,E18<=450),E18*0.35,AND(E18>450,E18<=600),E18*0.3,AND(E18>600,E18<=1000),E18*0.25,E18>1000,E18*0.2)","v":0},null,"","IBAN BIC"]
[null,null,"S U M M E  bzw.  Ü B E R T R A G:",null,null,{"$f":"IF(SUM(F9:F18)>0,SUM(F9:F18),\"\")","v":""},{"$f":"IF(SUM(G9:G18)>0,SUM(G9:G18),\"\")","v":""},{"$f":"IF(SUM(H9:H18)>0,SUM(H9:H18),\"\")","v":""}]
["Anmerkungen: "]
["1 Tatsächliche Fahrtkosten können nur alternativ zu einem Freiwilligenpauschale ersetzt werden. Die Wahl zwischen den beiden kann täglich erfolgen. "]
["2 Nur für im Verein tätige Personen (z.B. Vereinsobmann/frau, Kassier:in, Platzwart:in), die weder vom Anwendungsbereich des § 3 Abs. 1 Z 16c EStG 1988 (PRAE) umfasst noch Dienstnehmer:innen sind."]
["3 Der:die Empfänger:in hat für den Betrieb des Fahrzeuges selbst aufzukommen. "]
["4  Kilometergeld darf nur bis zur steuerlich zulässigen Höhe ausbezahlt werden."]
["5  Die Auszahlung kann sowohl in Bar (mit Unterschrift des  Empfängers/der Empfängerin) als auch mittels Überweisung (IBAN + BIC des Empfängers/der Empfängerin) erfolgen. Bei einer Überweisung des Betrages"]
["    ist der IBAN + BIC des Empfängers/der Empfängerin einzutragen und bei der Kontrolle der Überweisungsbeleg beizubringen! (BIC - bei Zahlungen innerhalb des Europäischen Wirtschaftsraumes nicht notwendig)"]
[]
["Disclaimer: Dieses Dokument enthält lediglich allgemeine Informationen, die eine Beratung im Einzelfall nicht ersetzen können. Die Informationen in diesem Dokument sind weder ein Ersatz für eine professionelle Beratung noch sollten sie als Basis für eine Entscheidung oder Aktion dienen, die eine Auswirkung auf Ihre Finanzen oder Ihre Geschäftstätigkeit hat. Bevor Sie eine diesbezügliche Entscheidung treffen, sollten Sie eine qualifizierte, professionelle Beratung in Anspruch nehmen. "]
[]
["Die Basis der Tabelle wurde freundlicher Weise von Sport Austria zur Verfügung gestellt.",{"$nulls":8},"tatsächliche Fahrtkosten Stand: Sport Austria: 04/2025 - ÖTSV 08/2025"]
[]
["Bitte beachten Sie die Datenschutz-Informationspflicht auf der zweiten Seite!"]
[]
[]
[]
["ACHTUNG! Lesen Sie untenstehende Datenschutz-Informationspflicht aufmerksam durch und passen Sie diese ggf. an Ihre persönliche Situation und Struktur an (sollten Sie z.B. das Formular erweitern oder an weitere Empfängerkreise weitergeben). Ergänzen Sie außerdem die rot markierten Passagen sofern zutreffend."]
[]
[]
["Datenschutz-Informationspflicht"]
[]
["Die Daten von Ihnen werden vom Verein/Verband ___________________________________ (Name, Telefon, E-Mail) als Verantwortlicher zum Zweck der Abrechnung von Fahrtkosten für im Verein tätige Personen (z.B. Vereinsobmann/frau, Kassier:in, Platzwart:in) die nicht vom Anwendungsbereich des § 3 Abs. 1 Z 16c EStG 1988 (PRAE) erfasst sind nach Art. 4 Z 7 DSGVO aufgrund Vertragserfüllung verarbeitet. Die Kontaktdaten des Datenschutzbeauftragten sind __________________ (falls vorhanden).\nEs handelt sich dabei um die Datenkategorien Vorname, Familienname, Wohnort sowie Informationen zur Reisetätigkeit und im Falle einer Überweisung auch den IBAN/BIC.\nDie Weitergabe der personenbezogenen Daten von Ihnen an Dritte ist nur in Erfüllung der vertraglichen Verpflichtungen bzw. der uns treffenden rechtlichen Verpflichtungen vorgesehen. Dies ist vor allem für die Verwaltung und Erfüllung der Verträge mit Ihnen bzw. anderer uns obliegender Verpflichtungen gegenüber Auftragsverarbeitern (bspw. Buchhaltung und Rechnungswesen, Inkassoinstitute, Rechts-/Steuervertretung), Kreditinstitute und Banken, übergeordnete oder verbundene Organisationen und Unternehmen (bspw. Konzerngesellschaften), Behörden und öffentliche Stellen (bspw. Finanzbehörden, Sozialversicherungsträger, Landes- und Bundesförderstellen) an diese erforderlich. An andere Dritte ist die Weitergabe der personenbezogenen Daten nicht vorgesehen. Werden derartige Daten an Dritte weitergegeben, werden mit diese entsprechende (Auftragsverarbeiter-) Vereinbarungen getroffen oder es bestehen diesbezügliche gesetzliche Verpflichtungen zur Datenweitergabe.\nDie Daten von Ihnen werden beim Verein ab Erhebung der Daten für die Dauer der Vertragserfüllung und – sofern keine anderen daran anschließenden Aufbewahrungspflichten gesetzlich vorgeschrieben sind (Übersicht über die in Österreich geltenden gesetzlichen Aufbewahrungspflichten unter www.wko.at/service/wirtschaftsrecht-gewerberecht/eu-dsgvo-speicher-und-aufbewahrungsfristen.html) für eine Dauer von 10 Jahren gespeichert.\nEs besteht keine Absicht, die Daten von Ihnen an ein Drittland oder eine internationale Organisation zu übermitteln (Art 13 Abs 1 lit f DSGVO). Werden derartige Daten an Dritte in einem Drittland weitergegeben, werden mit diesen entsprechende (Auftragsverarbeiter-) Vereinbarungen getroffen, sofern es keinen entsprechenden Angemessenheitsbeschluss für das Drittland oder sonstige geeignete Garantien oder eine ausdrückliche Einwilligung von Ihnen in Kenntnis des Fehlens eines derartigen Angemessenheitsbeschlusses oder sonstige geeignete Garantien gibt (Art. 49 DSGVO).      Sie haben nach Art 13. Abs. 2 lit. b DSGVO jederzeit das Recht auf Auskunft über die Daten nach Art. 15 DSGVO, Recht auf Berichtigung nach Art. 16 DSGVO, Löschung nach Art. 17 DSGVO, Recht auf Einschränkung der Verarbeitung der Daten nach Art. 20 DSGVO, Recht auf Datenübertragbarkeit nach Art. 21 DSGVO, Recht auf Entscheidungen, die nicht ausschließlich auf einer automatisierten Verarbeitung beruhen – einschließlich Profiling – nach Art 22 DSGVO.\nSie haben das Recht auf Beschwerde bei der Aufsichtsbehörde. (Art. 13 Abs. 2 lit. d DSGVO). Die zuständige Aufsichtsbehörde ist die Datenschutzbehörde, 1082 Wien, Wickenburggasse 8.\nDie Bereitstellung der personenbezogenen Daten von Ihnen ist zur Vertragserfüllung notwendig. Ohne diese Daten ist eine Vertragserfüllung unmöglich und wäre sodann der Vertrag von uns nicht abzuschließen bzw. aufzulösen (Art. 13 Abs. 2 lit. e DSGVO).\nEs besteht keine Absicht, die Daten von Ihnen für automatisierte Entscheidungsfindung einschließlich Profiling (Datenanalyse zu Verhalten, Gewohnheiten, Präferenzen…) zu verarbeiten (Art 13. Abs 2 lit f DSGVO).\nZum Schutz Ihrer personenbezogenen Daten bei uns haben wir entsprechend der Bestimmungen des Art 32 DSGVO geeignete technische und organisatorische Maßnahmen getroffen.\n"]